[Event "Betsys MČR v online bleskovém šachu 2021"]
[Site "Chess.com"]
[Date "2021.04.17"]
[Round "11"]
[White "Vitana"]
[Black "Svisthorsky"]
[Result "1-0"]
[WhiteElo "1731"]
[BlackElo "1461"]
[TimeControl "180+1"]
[EndTime "10:49:46 PDT"]
[Termination "Uživatel Vitana zvítězil po vzdání soupeře"]

1. e4 {[%clk 0:03:00.9]} 1... e5 {[%clk 0:02:59.7]} 2. Nc3 {[%clk 0:02:59.7]}
2... Nf6 {[%clk 0:02:57]} 3. Bc4 {[%clk 0:02:59.6]} 3... Bb4 {[%clk 0:02:53.8]}
4. Nge2 {[%clk 0:02:53.7]} 4... O-O {[%clk 0:02:52.3]} 5. O-O {[%clk 0:02:53.2]}
5... c6 {[%clk 0:02:52.5]} 6. d3 {[%clk 0:02:51.1]} 6... d5 {[%clk 0:02:51.3]}
7. exd5 {[%clk 0:02:50.3]} 7... cxd5 {[%clk 0:02:46.6]} 8. Bb3 {[%clk
0:02:49.9]} 8... d4 {[%clk 0:02:39.1]} 9. Ne4 {[%clk 0:02:48.3]} 9... Nxe4
{[%clk 0:02:32.9]} 10. dxe4 {[%clk 0:02:48.1]} 10... Bg4 {[%clk 0:02:24.8]} 11.
f3 {[%clk 0:02:46.1]} 11... Be6 {[%clk 0:02:10.9]} 12. f4 {[%clk 0:02:31]} 12...
Bc5 {[%clk 0:02:01.9]} 13. Kh1 {[%clk 0:02:27.7]} 13... Nc6 {[%clk 0:01:51.3]}
14. fxe5 {[%clk 0:02:14.8]} 14... Bxb3 {[%clk 0:01:47.8]} 15. axb3 {[%clk
0:02:12.9]} 15... Nxe5 {[%clk 0:01:46.9]} 16. Bf4 {[%clk 0:02:10.9]} 16... d3
{[%clk 0:01:26]} 17. Bxe5 {[%clk 0:02:01]} 17... dxe2 {[%clk 0:01:25.1]} 18.
Qxe2 {[%clk 0:02:00.8]} 18... Qe7 {[%clk 0:01:07]} 19. Bc3 {[%clk 0:01:59.9]}
19... Rae8 {[%clk 0:01:02.2]} 20. Rae1 {[%clk 0:01:58.4]} 20... b5 {[%clk
0:00:56.8]} 21. Qg4 {[%clk 0:01:48.4]} 21... f6 {[%clk 0:00:45]} 22. h3 {[%clk
0:01:31.7]} 22... b4 {[%clk 0:00:40.9]} 23. Bd2 {[%clk 0:01:30.7]} 23... Kh8
{[%clk 0:00:39.3]} 24. c3 {[%clk 0:01:28.8]} 24... bxc3 {[%clk 0:00:35.5]} 25.
bxc3 {[%clk 0:01:26.4]} 25... Qf7 {[%clk 0:00:29.6]} 26. b4 {[%clk 0:01:25]}
26... Bb6 {[%clk 0:00:29.4]} 27. e5 {[%clk 0:01:18.2]} 27... f5 {[%clk
0:00:25.1]} 28. Qf3 {[%clk 0:01:17.2]} 28... Qe6 {[%clk 0:00:20.6]} 29. Be3
{[%clk 0:01:12]} 29... Bc7 {[%clk 0:00:19]} 30. Bd4 {[%clk 0:00:58.8]} 30... Rf7
{[%clk 0:00:12.3]} 31. Re2 {[%clk 0:00:53.4]} 31... a5 {[%clk 0:00:12.1]} 32.
bxa5 {[%clk 0:00:50.7]} 32... Bxa5 {[%clk 0:00:11.6]} 33. Ra1 {[%clk 0:00:49.5]}
33... Bb6 {[%clk 0:00:10.8]} 34. Qe3 {[%clk 0:00:44.3]} 34... Bxd4 {[%clk
0:00:09.8]} 35. cxd4 {[%clk 0:00:43.9]} 35... Qc6 {[%clk 0:00:07.9]} 36. Rc1
{[%clk 0:00:41.9]} 36... Qd7 {[%clk 0:00:06.2]} 37. Rd2 {[%clk 0:00:40.1]} 37...
Qe6 {[%clk 0:00:05.5]} 38. d5 {[%clk 0:00:38]} 38... Qxe5 {[%clk 0:00:05.5]} 39.
Qxe5 {[%clk 0:00:37.3]} 39... Rxe5 {[%clk 0:00:05.6]} 40. Rc8+ {[%clk
0:00:37.5]} 1-0

[Event "Betsys MČR v online bleskovém šachu 2021"]
[Site "Chess.com"]
[Date "2021.04.17"]
[Round "11"]
[White "Terilka"]
[Black "Milan_Jancek"]
[Result "0-1"]
[WhiteElo "1552"]
[BlackElo "1819"]
[TimeControl "180+1"]
[EndTime "10:49:47 PDT"]
[Termination "Uživatel Milan_Jancek zvítězil na čas"]

1. d4 {[%clk 0:03:00.9]} 1... d5 {[%clk 0:02:59.8]} 2. Nf3 {[%clk 0:03:01]} 2...
Nf6 {[%clk 0:03:00.3]} 3. e3 {[%clk 0:03:01.1]} 3... e6 {[%clk 0:03:00.9]} 4.
Bd3 {[%clk 0:02:59.7]} 4... Be7 {[%clk 0:03:01]} 5. c4 {[%clk 0:02:59.2]} 5...
dxc4 {[%clk 0:02:59.4]} 6. Bxc4 {[%clk 0:03:00.1]} 6... O-O {[%clk 0:02:59.8]}
7. Nc3 {[%clk 0:03:00]} 7... Nbd7 {[%clk 0:02:59.1]} 8. O-O {[%clk 0:02:59]}
8... b6 {[%clk 0:02:57.9]} 9. Re1 {[%clk 0:02:49.2]} 9... Bb7 {[%clk 0:02:58.1]}
10. Qe2 {[%clk 0:02:49.2]} 10... c5 {[%clk 0:02:56.7]} 11. Bd3 {[%clk
0:02:43.5]} 11... Rc8 {[%clk 0:02:54.4]} 12. Bd2 {[%clk 0:02:40.7]} 12... h6
{[%clk 0:02:46.5]} 13. Rac1 {[%clk 0:02:39.6]} 13... cxd4 {[%clk 0:02:45.8]} 14.
Nxd4 {[%clk 0:02:39]} 14... Nc5 {[%clk 0:02:44.4]} 15. Bb1 {[%clk 0:02:37.7]}
15... Qd7 {[%clk 0:02:38.7]} 16. Red1 {[%clk 0:02:30.6]} 16... Rfd8 {[%clk
0:02:38.1]} 17. Be1 {[%clk 0:02:28.7]} 17... Ba8 {[%clk 0:02:20.1]} 18. f3
{[%clk 0:02:10.3]} 18... Qb7 {[%clk 0:02:18.1]} 19. Bg3 {[%clk 0:02:04]} 19...
Bf8 {[%clk 0:01:54.8]} 20. Bh4 {[%clk 0:01:44.2]} 20... Ncd7 {[%clk 0:01:52.2]}
21. Ne4 {[%clk 0:01:31.7]} 21... Rxc1 {[%clk 0:01:46.7]} 22. Rxc1 {[%clk
0:01:32.6]} 22... Be7 {[%clk 0:01:37]} 23. Nxf6+ {[%clk 0:01:26.4]} 23... Nxf6
{[%clk 0:01:35.1]} 24. Qc2 {[%clk 0:01:05.3]} 24... Qd7 {[%clk 0:01:32.2]} 25.
Bxf6 {[%clk 0:01:00.3]} 25... Bxf6 {[%clk 0:01:32]} 26. Qh7+ {[%clk 0:01:00]}
26... Kf8 {[%clk 0:01:30.7]} 27. Ne2 {[%clk 0:00:35.1]} 27... Qd2 {[%clk
0:01:24.9]} 28. Qc2 {[%clk 0:00:26.3]} 28... Qxc2 {[%clk 0:01:19.6]} 29. Bxc2
{[%clk 0:00:27.2]} 29... Bxb2 {[%clk 0:01:15.3]} 30. Rb1 {[%clk 0:00:24.2]}
30... Bf6 {[%clk 0:01:15.2]} 31. Nf4 {[%clk 0:00:20.4]} 31... Rd2 {[%clk
0:01:12.9]} 32. Bb3 {[%clk 0:00:18.3]} 32... Ke7 {[%clk 0:01:03.9]} 33. Rc1
{[%clk 0:00:18.7]} 33... Kd8 {[%clk 0:00:44.1]} 34. h3 {[%clk 0:00:10.4]} 34...
Bb7 {[%clk 0:00:44.1]} 35. Kh2 {[%clk 0:00:08.7]} 35... g6 {[%clk 0:00:37.4]}
36. Kg3 {[%clk 0:00:08.9]} 36... Be5 {[%clk 0:00:36.2]} 37. Rc4 {[%clk
0:00:05.8]} 37... g5 {[%clk 0:00:36]} 38. h4 {[%clk 0:00:01.1]} 38... gxf4+
{[%clk 0:00:35.3]} 39. exf4 {[%clk 0:00:01.8]} 39... Bd6 {[%clk 0:00:35.3]} 0-1

[Event "Betsys MČR v online bleskovém šachu 2021"]
[Site "Chess.com"]
[Date "2021.04.17"]
[Round "11"]
[White "ReceptiveYoyo"]
[Black "121pepa"]
[Result "1-0"]
[WhiteElo "1377"]
[BlackElo "1438"]
[TimeControl "180+1"]
[EndTime "10:49:49 PDT"]
[Termination "Uživatel ReceptiveYoyo zvítězil na čas"]

1. d4 {[%clk 0:03:00.9]} 1... Nf6 {[%clk 0:02:22.9]} 2. c4 {[%clk 0:03:00.3]}
2... g6 {[%clk 0:02:20.3]} 3. e3 {[%clk 0:03:00.3]} 3... Bg7 {[%clk 0:02:18.2]}
4. Nf3 {[%clk 0:03:00.4]} 4... d6 {[%clk 0:02:15.2]} 5. Bd3 {[%clk 0:02:59.2]}
5... O-O {[%clk 0:02:14.4]} 6. Nc3 {[%clk 0:02:58.1]} 6... Na6 {[%clk
0:02:13.8]} 7. e4 {[%clk 0:02:46.5]} 7... e5 {[%clk 0:02:03.2]} 8. d5 {[%clk
0:02:43.8]} 8... Nc5 {[%clk 0:02:00.8]} 9. Bc2 {[%clk 0:02:38.7]} 9... a5 {[%clk
0:01:59]} 10. O-O {[%clk 0:02:38.9]} 10... b6 {[%clk 0:01:54.9]} 11. Bg5 {[%clk
0:02:36.2]} 11... Ba6 {[%clk 0:01:52.6]} 12. b3 {[%clk 0:02:27.4]} 12... Qd7
{[%clk 0:01:50.2]} 13. Re1 {[%clk 0:02:21.9]} 13... Rab8 {[%clk 0:01:43.6]} 14.
a3 {[%clk 0:02:18.8]} 14... Rbc8 {[%clk 0:01:40.4]} 15. b4 {[%clk 0:02:06.3]}
15... axb4 {[%clk 0:01:36.5]} 16. axb4 {[%clk 0:02:06.5]} 16... Bxc4 {[%clk
0:01:19.4]} 17. bxc5 {[%clk 0:02:03.9]} 17... bxc5 {[%clk 0:01:20]} 18. Ra4
{[%clk 0:01:59.2]} 18... Bb5 {[%clk 0:01:14.4]} 19. Nxb5 {[%clk 0:01:59.4]}
19... Qxb5 {[%clk 0:01:13.1]} 20. Bd3 {[%clk 0:01:58.9]} 20... Qb7 {[%clk
0:01:08.6]} 21. Qb1 {[%clk 0:01:51.1]} 21... Qxb1 {[%clk 0:01:00.4]} 22. Rxb1
{[%clk 0:01:52]} 22... Rb8 {[%clk 0:00:57]} 23. Rxb8 {[%clk 0:01:49.1]} 23...
Rxb8 {[%clk 0:00:54]} 24. h3 {[%clk 0:01:45.2]} 24... h6 {[%clk 0:00:53.7]} 25.
Be3 {[%clk 0:01:42.6]} 25... g5 {[%clk 0:00:53.1]} 26. Ra7 {[%clk 0:01:39.6]}
26... Ne8 {[%clk 0:00:52]} 27. Bc4 {[%clk 0:01:34.1]} 27... f6 {[%clk
0:00:48.6]} 28. Kf1 {[%clk 0:01:34]} 28... Bf8 {[%clk 0:00:47.3]} 29. Ke2 {[%clk
0:01:32.9]} 29... Be7 {[%clk 0:00:46.9]} 30. Kd3 {[%clk 0:01:28.7]} 30... Bd8
{[%clk 0:00:46.6]} 31. g4 {[%clk 0:01:22]} 31... Ng7 {[%clk 0:00:32.8]} 32. h4
{[%clk 0:01:16.2]} 32... Ne8 {[%clk 0:00:31.2]} 33. hxg5 {[%clk 0:01:10.1]}
33... hxg5 {[%clk 0:00:29.8]} 34. Nd2 {[%clk 0:01:07.4]} 34... Kf7 {[%clk
0:00:19]} 35. Nb3 {[%clk 0:01:07.7]} 35... Kg7 {[%clk 0:00:18.7]} 36. Na5 {[%clk
0:01:05.1]} 36... Kf7 {[%clk 0:00:18.7]} 37. Nc6 {[%clk 0:01:05]} 37... Be7
{[%clk 0:00:16.8]} 38. Nxb8 {[%clk 0:01:03.6]} 38... Bf8 {[%clk 0:00:14.4]} 39.
Na6 {[%clk 0:00:58]} 39... Be7 {[%clk 0:00:12.9]} 40. Nxc7 {[%clk 0:00:58]}
40... Bd8 {[%clk 0:00:09.4]} 41. Nxe8+ {[%clk 0:00:56.7]} 41... Kxe8 {[%clk
0:00:08.9]} 42. Ra6 {[%clk 0:00:50.4]} 42... Kd7 {[%clk 0:00:06.6]} 43. Bb5+
{[%clk 0:00:50.7]} 43... Ke7 {[%clk 0:00:05]} 44. Kc4 {[%clk 0:00:47.1]} 44...
Bc7 {[%clk 0:00:02.1]} 45. Ra7 {[%clk 0:00:46.8]} 1-0

[Event "Betsys MČR v online bleskovém šachu 2021"]
[Site "Chess.com"]
[Date "2021.04.17"]
[Round "11"]
[White "hoacin"]
[Black "chessbeer17"]
[Result "0-1"]
[WhiteElo "2535"]
[BlackElo "2369"]
[TimeControl "180+1"]
[EndTime "10:49:51 PDT"]
[Termination "Uživatel chessbeer17 zvítězil matem"]

1. e4 {[%clk 0:03:00.9]} 1... c6 {[%clk 0:03:00.3]} 2. Nf3 {[%clk 0:02:59.1]}
2... d5 {[%clk 0:03:01.2]} 3. d3 {[%clk 0:02:59.4]} 3... Bg4 {[%clk 0:02:59.9]}
4. h3 {[%clk 0:02:58.4]} 4... Bxf3 {[%clk 0:02:59.5]} 5. Qxf3 {[%clk 0:02:58.4]}
5... Nf6 {[%clk 0:03:00.2]} 6. e5 {[%clk 0:02:58.2]} 6... Nfd7 {[%clk
0:03:00.1]} 7. d4 {[%clk 0:02:57.9]} 7... e6 {[%clk 0:03:00.5]} 8. Bd3 {[%clk
0:02:56.6]} 8... c5 {[%clk 0:03:00]} 9. c3 {[%clk 0:02:56.7]} 9... Nc6 {[%clk
0:02:59.9]} 10. Be3 {[%clk 0:02:55.5]} 10... Qb6 {[%clk 0:02:58.6]} 11. O-O
{[%clk 0:02:55.3]} 11... cxd4 {[%clk 0:02:57]} 12. cxd4 {[%clk 0:02:55.3]} 12...
Nxd4 {[%clk 0:02:55.1]} 13. Qf4 {[%clk 0:02:44.8]} 13... Bc5 {[%clk 0:02:53.1]}
14. Nc3 {[%clk 0:02:43.6]} 14... Nc6 {[%clk 0:02:43.6]} 15. Na4 {[%clk
0:02:34.2]} 15... Qa5 {[%clk 0:02:43.4]} 16. Nxc5 {[%clk 0:02:31.8]} 16... Nxc5
{[%clk 0:02:43.3]} 17. Bc2 {[%clk 0:02:25.5]} 17... Nd7 {[%clk 0:02:37.9]} 18.
Qg3 {[%clk 0:02:22.3]} 18... g6 {[%clk 0:02:22.9]} 19. f4 {[%clk 0:02:18.1]}
19... O-O-O {[%clk 0:02:18.3]} 20. b4 {[%clk 0:02:16.3]} 20... Qa3 {[%clk
0:02:10.1]} 21. Rfb1 {[%clk 0:02:10.6]} 21... Qc3 {[%clk 0:02:00]} 22. Rc1
{[%clk 0:02:02.6]} 22... d4 {[%clk 0:01:55]} 23. Bf2 {[%clk 0:01:57.6]} 23...
Qxg3 {[%clk 0:01:55]} 24. Bxg3 {[%clk 0:01:57.5]} 24... Kb8 {[%clk 0:01:51]} 25.
Be4 {[%clk 0:01:54.3]} 25... Rc8 {[%clk 0:01:45.6]} 26. Bxc6 {[%clk 0:01:53.6]}
26... Rxc6 {[%clk 0:01:45.3]} 27. Rxc6 {[%clk 0:01:53.4]} 27... bxc6 {[%clk
0:01:46.2]} 28. Rd1 {[%clk 0:01:53.3]} 28... Nb6 {[%clk 0:01:42.8]} 29. Rxd4
{[%clk 0:01:50.4]} 29... Nd5 {[%clk 0:01:43.1]} 30. Bh4 {[%clk 0:01:47.5]} 30...
Kc7 {[%clk 0:01:40.1]} 31. g4 {[%clk 0:01:46.5]} 31... Rb8 {[%clk 0:01:38.6]}
32. a3 {[%clk 0:01:46.4]} 32... Rb5 {[%clk 0:01:33.6]} 33. Bf2 {[%clk
0:01:44.4]} 33... a5 {[%clk 0:01:31.5]} 34. bxa5 {[%clk 0:01:44]} 34... Rxa5
{[%clk 0:01:32.4]} 35. a4 {[%clk 0:01:43.3]} 35... Rc5 {[%clk 0:01:17.2]} 36.
Kg2 {[%clk 0:01:41.2]} 36... Rc3 {[%clk 0:01:15]} 37. f5 {[%clk 0:01:30.7]}
37... Rc2 {[%clk 0:01:05.9]} 38. fxe6 {[%clk 0:01:28.9]} 38... fxe6 {[%clk
0:01:05]} 39. Kg3 {[%clk 0:01:26]} 39... c5 {[%clk 0:01:04]} 40. Rd3 {[%clk
0:01:24.6]} 40... Kc6 {[%clk 0:01:02.4]} 41. Kh4 {[%clk 0:01:21.8]} 41... Rxf2
{[%clk 0:00:58.6]} 42. Kg5 {[%clk 0:01:21.9]} 42... Re2 {[%clk 0:00:56]} 43. Kh6
{[%clk 0:01:21.2]} 43... Rxe5 {[%clk 0:00:54.5]} 44. Kxh7 {[%clk 0:01:21.3]}
44... g5 {[%clk 0:00:55.1]} 45. Kg6 {[%clk 0:01:21.1]} 45... c4 {[%clk
0:00:54.4]} 46. Rd1 {[%clk 0:01:19.6]} 46... c3 {[%clk 0:00:53.9]} 47. a5 {[%clk
0:01:19]} 47... Kb5 {[%clk 0:00:53]} 48. Ra1 {[%clk 0:01:19.1]} 48... Ka6 {[%clk
0:00:52.9]} 49. Kf7 {[%clk 0:01:18.6]} 49... Re2 {[%clk 0:00:52.5]} 50. Kg6
{[%clk 0:01:17.9]} 50... Re5 {[%clk 0:00:48]} 51. h4 {[%clk 0:01:14.9]} 51...
gxh4 {[%clk 0:00:47.8]} 52. g5 {[%clk 0:01:15.3]} 52... h3 {[%clk 0:00:48.1]}
53. Kh6 {[%clk 0:01:15.5]} 53... h2 {[%clk 0:00:45.7]} 54. g6 {[%clk 0:01:15.7]}
54... Ne7 {[%clk 0:00:43.9]} 55. g7 {[%clk 0:01:14.9]} 55... Nf5+ {[%clk
0:00:44.2]} 56. Kg6 {[%clk 0:01:15]} 56... Nxg7 {[%clk 0:00:45.1]} 57. Kxg7
{[%clk 0:01:15.3]} 57... Re2 {[%clk 0:00:45.2]} 58. Kf6 {[%clk 0:01:14.9]} 58...
c2 {[%clk 0:00:45.6]} 59. Rc1 {[%clk 0:01:14.5]} 59... Rg2 {[%clk 0:00:45.6]}
60. Rh1 {[%clk 0:01:13.8]} 60... Kxa5 {[%clk 0:00:44.9]} 61. Kxe6 {[%clk
0:01:13.3]} 61... Kb4 {[%clk 0:00:45.5]} 62. Kd5 {[%clk 0:01:12.8]} 62... Kc3
{[%clk 0:00:45.9]} 63. Ke4 {[%clk 0:01:13]} 63... Kb2 {[%clk 0:00:45.3]} 64. Kf3
{[%clk 0:01:12.9]} 64... Rd2 {[%clk 0:00:45.5]} 65. Kg3 {[%clk 0:01:12.1]} 65...
c1=Q {[%clk 0:00:45.2]} 66. Rg1 {[%clk 0:01:08.6]} 66... hxg1=Q+ {[%clk
0:00:43.5]} 67. Kf3 {[%clk 0:01:07.9]} 67... Qcf1+ {[%clk 0:00:42.6]} 68. Ke4
{[%clk 0:01:07.5]} 68... Rd4+ {[%clk 0:00:42.3]} 69. Ke5 {[%clk 0:01:07.1]}
69... Qf4+ {[%clk 0:00:42.3]} 70. Ke6 {[%clk 0:01:06.7]} 70... Qg6+ {[%clk
0:00:42.4]} 71. Ke7 {[%clk 0:01:05.9]} 71... Qff7# {[%clk 0:00:42.4]} 0-1

[Event "Betsys MČR v online bleskovém šachu 2021"]
[Site "Chess.com"]
[Date "2021.04.17"]
[Round "11"]
[White "TheRigos"]
[Black "reflexia64"]
[Result "1-0"]
[WhiteElo "2553"]
[BlackElo "2275"]
[TimeControl "180+1"]
[EndTime "10:49:52 PDT"]
[Termination "Uživatel TheRigos zvítězil matem"]

1. e4 {[%clk 0:03:00.9]} 1... c5 {[%clk 0:02:59.2]} 2. Nf3 {[%clk 0:03:00.9]}
2... Nc6 {[%clk 0:02:59.3]} 3. d4 {[%clk 0:03:01.4]} 3... cxd4 {[%clk
0:02:59.3]} 4. Nxd4 {[%clk 0:03:02.3]} 4... e5 {[%clk 0:02:59.4]} 5. Nb5 {[%clk
0:03:02.6]} 5... d6 {[%clk 0:02:59.2]} 6. N1c3 {[%clk 0:03:03]} 6... a6 {[%clk
0:02:57.2]} 7. Na3 {[%clk 0:03:03.5]} 7... Be7 {[%clk 0:02:54.2]} 8. Nc4 {[%clk
0:03:03.1]} 8... b5 {[%clk 0:02:46.5]} 9. Ne3 {[%clk 0:03:03.3]} 9... Nf6 {[%clk
0:02:46.6]} 10. Bd3 {[%clk 0:03:03.6]} 10... O-O {[%clk 0:02:45.6]} 11. O-O
{[%clk 0:03:04]} 11... Rb8 {[%clk 0:02:43]} 12. a4 {[%clk 0:03:04.1]} 12... b4
{[%clk 0:02:38.7]} 13. Ncd5 {[%clk 0:03:04.6]} 13... Nxd5 {[%clk 0:02:25.7]} 14.
Nxd5 {[%clk 0:03:03]} 14... Bg5 {[%clk 0:02:23.9]} 15. c3 {[%clk 0:03:02]} 15...
bxc3 {[%clk 0:02:22.1]} 16. bxc3 {[%clk 0:03:01.8]} 16... Bxc1 {[%clk
0:02:20.8]} 17. Qxc1 {[%clk 0:02:48.5]} 17... Ne7 {[%clk 0:02:19.7]} 18. Ne3
{[%clk 0:02:43.4]} 18... Qc7 {[%clk 0:02:13]} 19. Qd2 {[%clk 0:02:39.8]} 19...
Bb7 {[%clk 0:02:01.3]} 20. Rfc1 {[%clk 0:02:30.5]} 20... Rfd8 {[%clk 0:01:47.5]}
21. c4 {[%clk 0:02:19.4]} 21... Ng6 {[%clk 0:01:46.1]} 22. g3 {[%clk 0:02:13.8]}
22... Nf8 {[%clk 0:01:45.4]} 23. Nf5 {[%clk 0:02:06.6]} 23... Ne6 {[%clk
0:01:38.1]} 24. Rab1 {[%clk 0:02:06.1]} 24... Bc6 {[%clk 0:01:30.3]} 25. a5
{[%clk 0:02:01.4]} 25... h6 {[%clk 0:01:26.4]} 26. h4 {[%clk 0:01:59.5]} 26...
Nc5 {[%clk 0:01:25.4]} 27. f3 {[%clk 0:01:50.6]} 27... Kh7 {[%clk 0:01:16.1]}
28. Bc2 {[%clk 0:01:36.7]} 28... Rxb1 {[%clk 0:00:57.6]} 29. Rxb1 {[%clk
0:01:36.6]} 29... Bd7 {[%clk 0:00:53.5]} 30. Ne3 {[%clk 0:01:29.5]} 30... Be6
{[%clk 0:00:52.8]} 31. Rb6 {[%clk 0:01:26.8]} 31... g6 {[%clk 0:00:46.8]} 32.
Kg2 {[%clk 0:01:26.7]} 32... Kg7 {[%clk 0:00:46.1]} 33. f4 {[%clk 0:01:17.8]}
33... f6 {[%clk 0:00:41.6]} 34. f5 {[%clk 0:01:12.3]} 34... gxf5 {[%clk
0:00:39.8]} 35. exf5 {[%clk 0:01:10.9]} 35... Bf7 {[%clk 0:00:38.2]} 36. Ng4
{[%clk 0:00:53.1]} 36... Rh8 {[%clk 0:00:36.8]} 37. Rxd6 {[%clk 0:00:47.6]}
37... Qb7+ {[%clk 0:00:26.1]} 38. Kh2 {[%clk 0:00:41.3]} 38... Qf3 {[%clk
0:00:21.5]} 39. Nxf6 {[%clk 0:00:40.3]} 39... Bxc4 {[%clk 0:00:14]} 40. Bd1
{[%clk 0:00:34.3]} 40... Qf1 {[%clk 0:00:11.3]} 41. Nh5+ {[%clk 0:00:33.5]}
41... Kh7 {[%clk 0:00:08.8]} 42. Rd7+ {[%clk 0:00:32.5]} 42... Kg8 {[%clk
0:00:07.7]} 43. Rg7+ {[%clk 0:00:32.6]} 43... Kf8 {[%clk 0:00:06.6]} 44. Qd8#
{[%clk 0:00:33.5]} 1-0

[Event "Betsys MČR v online bleskovém šachu 2021"]
[Site "Chess.com"]
[Date "2021.04.17"]
[Round "11"]
[White "ReitteN"]
[Black "Honza_13"]
[Result "0-1"]
[WhiteElo "1768"]
[BlackElo "1947"]
[TimeControl "180+1"]
[EndTime "10:49:53 PDT"]
[Termination "Uživatel Honza_13 zvítězil matem"]

1. c4 {[%clk 0:02:57.6]} 1... g6 {[%clk 0:02:58.5]} 2. Nc3 {[%clk 0:02:56.6]}
2... Bg7 {[%clk 0:02:58]} 3. g3 {[%clk 0:02:57]} 3... Nf6 {[%clk 0:02:57.7]} 4.
Bg2 {[%clk 0:02:54.7]} 4... O-O {[%clk 0:02:57.3]} 5. d4 {[%clk 0:02:47.3]} 5...
d6 {[%clk 0:02:55.2]} 6. e4 {[%clk 0:02:43.1]} 6... Nbd7 {[%clk 0:02:54]} 7.
Nge2 {[%clk 0:02:40.1]} 7... e5 {[%clk 0:02:53.6]} 8. d5 {[%clk 0:02:08.6]} 8...
a5 {[%clk 0:02:51.3]} 9. O-O {[%clk 0:02:05.7]} 9... Nc5 {[%clk 0:02:50.6]} 10.
Qc2 {[%clk 0:02:02.9]} 10... Bg4 {[%clk 0:02:46.5]} 11. f3 {[%clk 0:01:54.3]}
11... Bc8 {[%clk 0:02:45.8]} 12. Be3 {[%clk 0:01:45.5]} 12... b6 {[%clk
0:02:43.9]} 13. Rad1 {[%clk 0:01:37.5]} 13... a4 {[%clk 0:02:36.8]} 14. Bxc5
{[%clk 0:01:35.5]} 14... bxc5 {[%clk 0:02:37.7]} 15. a3 {[%clk 0:01:32.7]} 15...
Qd7 {[%clk 0:02:25]} 16. Nc1 {[%clk 0:01:11.6]} 16... Ba6 {[%clk 0:02:22.8]} 17.
N3e2 {[%clk 0:01:06.7]} 17... Rfb8 {[%clk 0:02:17.5]} 18. Nd3 {[%clk 0:00:58]}
18... Qe8 {[%clk 0:02:05.4]} 19. Bh3 {[%clk 0:00:45.5]} 19... Bc8 {[%clk
0:01:48.9]} 20. Bxc8 {[%clk 0:00:42]} 20... Qxc8 {[%clk 0:01:49.8]} 21. Kg2
{[%clk 0:00:22.3]} 21... Nd7 {[%clk 0:01:37.3]} 22. f4 {[%clk 0:00:20.3]} 22...
exf4 {[%clk 0:01:29.4]} 23. Nexf4 {[%clk 0:00:19.3]} 23... Ne5 {[%clk
0:01:27.9]} 24. Nxe5 {[%clk 0:00:19.4]} 24... Bxe5 {[%clk 0:01:27.3]} 25. Nd3
{[%clk 0:00:19.7]} 25... Bd4 {[%clk 0:01:26.7]} 26. Rd2 {[%clk 0:00:17.2]} 26...
Rb3 {[%clk 0:01:24.1]} 27. Qc1 {[%clk 0:00:09.9]} 27... Be3 {[%clk 0:01:19.1]}
28. Qe1 {[%clk 0:00:07.8]} 28... Bxd2 {[%clk 0:01:14.2]} 29. Qxd2 {[%clk
0:00:08.7]} 29... Rab8 {[%clk 0:01:13.4]} 30. Qf4 {[%clk 0:00:04.2]} 30... Qd7
{[%clk 0:01:10.3]} 31. Nf2 {[%clk 0:00:03.3]} 31... Rxb2 {[%clk 0:01:09.6]} 32.
Kg1 {[%clk 0:00:03.6]} 32... f5 {[%clk 0:00:58.8]} 33. Nh3 {[%clk 0:00:02.5]}
33... Re8 {[%clk 0:00:48.5]} 34. Ng5 {[%clk 0:00:02.5]} 34... Qg7 {[%clk
0:00:37.3]} 35. Ne6 {[%clk 0:00:02.5]} 35... Qe5 {[%clk 0:00:31.6]} 36. Qh6
{[%clk 0:00:01.6]} 36... Rxe6 {[%clk 0:00:27.2]} 37. dxe6 {[%clk 0:00:01.8]}
37... Qd4+ {[%clk 0:00:26.6]} 38. Kh1 {[%clk 0:00:01.7]} 38... Qxe4+ {[%clk
0:00:26.7]} 39. Kg1 {[%clk 0:00:02.2]} 39... Qg2# {[%clk 0:00:26.8]} 0-1

[Event "Betsys MČR v online bleskovém šachu 2021"]
[Site "Chess.com"]
[Date "2021.04.17"]
[Round "11"]
[White "Staci_fiknout_Navara_Plat"]
[Black "Dejfos"]
[Result "1-0"]
[WhiteElo "1963"]
[BlackElo "1763"]
[TimeControl "180+1"]
[EndTime "10:49:53 PDT"]
[Termination "Uživatel Staci_fiknout_Navara_Plat zvítězil na čas"]

1. c4 {[%clk 0:03:00.9]} 1... Nf6 {[%clk 0:02:54.7]} 2. Nc3 {[%clk 0:03:00.8]}
2... g6 {[%clk 0:02:47.3]} 3. g3 {[%clk 0:03:00.2]} 3... Bg7 {[%clk 0:02:47.9]}
4. Bg2 {[%clk 0:03:00.7]} 4... O-O {[%clk 0:02:48.5]} 5. d4 {[%clk 0:03:00.8]}
5... c6 {[%clk 0:02:49]} 6. Bg5 {[%clk 0:03:01.2]} 6... e6 {[%clk 0:02:49]} 7.
e3 {[%clk 0:03:00]} 7... d5 {[%clk 0:02:49.4]} 8. cxd5 {[%clk 0:02:59.7]} 8...
exd5 {[%clk 0:02:47.3]} 9. Nge2 {[%clk 0:03:00.1]} 9... h6 {[%clk 0:02:41.3]}
10. Bxf6 {[%clk 0:02:59.6]} 10... Bxf6 {[%clk 0:02:40.5]} 11. O-O {[%clk
0:03:00.5]} 11... Bg7 {[%clk 0:02:39.8]} 12. Rc1 {[%clk 0:03:01]} 12... Bf5
{[%clk 0:02:36.6]} 13. Nf4 {[%clk 0:03:01]} 13... Nd7 {[%clk 0:02:33]} 14. Nd3
{[%clk 0:03:01]} 14... Qe7 {[%clk 0:02:15.2]} 15. Na4 {[%clk 0:02:54.5]} 15...
Be4 {[%clk 0:02:06.9]} 16. Nac5 {[%clk 0:02:48.4]} 16... Bxg2 {[%clk 0:02:06.1]}
17. Kxg2 {[%clk 0:02:47.3]} 17... Nxc5 {[%clk 0:02:05.4]} 18. Nxc5 {[%clk
0:02:48]} 18... h5 {[%clk 0:01:53]} 19. h4 {[%clk 0:02:46.2]} 19... Rac8 {[%clk
0:01:39.6]} 20. Rc2 {[%clk 0:02:41.9]} 20... Rfd8 {[%clk 0:01:38.7]} 21. Qf3
{[%clk 0:02:41.2]} 21... b6 {[%clk 0:01:16]} 22. Nd3 {[%clk 0:02:37.3]} 22...
Qe4 {[%clk 0:01:13.7]} 23. Rd1 {[%clk 0:02:12.2]} 23... c5 {[%clk 0:01:04.4]}
24. dxc5 {[%clk 0:02:02.8]} 24... bxc5 {[%clk 0:00:50.7]} 25. Rxc5 {[%clk
0:01:40.8]} 25... Rxc5 {[%clk 0:00:43.6]} 26. Nxc5 {[%clk 0:01:36.9]} 26...
Qxf3+ {[%clk 0:00:43.5]} 27. Kxf3 {[%clk 0:01:36.5]} 27... Bxb2 {[%clk
0:00:44.1]} 28. Nb3 {[%clk 0:01:27.8]} 28... Kg7 {[%clk 0:00:41.5]} 29. Ke2
{[%clk 0:01:21.5]} 29... Bc3 {[%clk 0:00:38.3]} 30. Kd3 {[%clk 0:01:15.1]} 30...
Be5 {[%clk 0:00:33.2]} 31. Rc1 {[%clk 0:01:14.5]} 31... Kf6 {[%clk 0:00:28.4]}
32. Rc6+ {[%clk 0:01:10.1]} 32... Rd6 {[%clk 0:00:23.6]} 33. Rxd6+ {[%clk
0:00:57.2]} 33... Bxd6 {[%clk 0:00:22.8]} 34. Kd4 {[%clk 0:00:57.1]} 34... Ke6
{[%clk 0:00:17.5]} 35. Nc5+ {[%clk 0:00:56.9]} 35... Bxc5+ {[%clk 0:00:15.9]}
36. Kxc5 {[%clk 0:00:57.8]} 36... Ke5 {[%clk 0:00:16.1]} 37. f3 {[%clk
0:00:58.1]} 37... f5 {[%clk 0:00:15.5]} 38. a3 {[%clk 0:00:49.2]} 38... Ke6
{[%clk 0:00:13.8]} 39. f4 {[%clk 0:00:42.4]} 39... Kd7 {[%clk 0:00:08.2]} 40.
Kxd5 {[%clk 0:00:42.3]} 40... a6 {[%clk 0:00:06.7]} 41. a4 {[%clk 0:00:34.8]}
1-0